[Event "*** Titled Tuesday Blitz"]
[Site "Chess.com"]
[Date "2020.03.03"]
[Round "8"]
[White "Misha_Bilous"]
[Black "Atakishiyev04"]
[Result "0-1"]
[WhiteElo "2497"]
[BlackElo "2700"]
[TimeControl "180+1"]
[EndTime "10:29:57 PST"]
[Termination "Atakishiyev04 won on time"]

1. d4 {[%clk 0:03:00.9]} 1... Nf6 {[%clk 0:02:59.5]} 2. c4 {[%clk 0:03:01.2]}
2... g6 {[%clk 0:02:53.6]} 3. Nc3 {[%clk 0:03:00.9]} 3... d5 {[%clk 0:02:53.7]}
4. cxd5 {[%clk 0:03:00.5]} 4... Nxd5 {[%clk 0:02:54.6]} 5. e4 {[%clk 0:03:00.8]}
5... Nxc3 {[%clk 0:02:54.3]} 6. bxc3 {[%clk 0:03:01.7]} 6... Bg7 {[%clk
0:02:54]} 7. Nf3 {[%clk 0:03:02.2]} 7... c5 {[%clk 0:02:52.6]} 8. Be3 {[%clk
0:03:02.5]} 8... O-O {[%clk 0:02:42.3]} 9. Qd2 {[%clk 0:02:53.8]} 9... Qa5
{[%clk 0:02:40.9]} 10. Rc1 {[%clk 0:02:46]} 10... Rd8 {[%clk 0:02:37.6]} 11. d5
{[%clk 0:02:45.5]} 11... e6 {[%clk 0:02:35.3]} 12. Bg5 {[%clk 0:02:41.2]} 12...
f6 {[%clk 0:02:34.7]} 13. Be3 {[%clk 0:02:36.4]} 13... Nc6 {[%clk 0:02:34.5]}
14. h4 {[%clk 0:02:29.3]} 14... exd5 {[%clk 0:02:19.5]} 15. exd5 {[%clk
0:02:29.1]} 15... Bg4 {[%clk 0:02:19]} 16. Be2 {[%clk 0:02:25.4]} 16... c4
{[%clk 0:01:41.4]} 17. Bxc4 {[%clk 0:02:18.7]} 17... Bxf3 {[%clk 0:01:35.5]} 18.
gxf3 {[%clk 0:02:17.9]} 18... Ne5 {[%clk 0:01:34.7]} 19. Be2 {[%clk 0:02:07.9]}
19... Rxd5 {[%clk 0:01:32.2]} 20. Qc2 {[%clk 0:02:02.1]} 20... Rc8 {[%clk
0:01:20.3]} 21. h5 {[%clk 0:01:50.3]} 21... f5 {[%clk 0:01:09.1]} 22. Kf1 {[%clk
0:01:47.1]} 22... Nc4 {[%clk 0:00:55.4]} 23. hxg6 {[%clk 0:01:14.7]} 23... hxg6
{[%clk 0:00:50.7]} 24. Qb3 {[%clk 0:01:04.8]} 24... Qb5 {[%clk 0:00:30.5]} 25.
Qxb5 {[%clk 0:00:53.6]} 25... Rxb5 {[%clk 0:00:31.4]} 26. Rh4 {[%clk 0:00:35.7]}
26... Nxe3+ {[%clk 0:00:27.7]} 27. fxe3 {[%clk 0:00:36.4]} 27... Rbc5 {[%clk
0:00:26.4]} 28. Rb4 {[%clk 0:00:20.4]} 28... b6 {[%clk 0:00:25]} 29. c4 {[%clk
0:00:20.8]} 29... Ra5 {[%clk 0:00:25.2]} 30. a4 {[%clk 0:00:19.3]} 30... Bf8
{[%clk 0:00:25.2]} 31. Rb5 {[%clk 0:00:17.6]} 31... Rxa4 {[%clk 0:00:24.5]} 32.
e4 {[%clk 0:00:17.6]} 32... fxe4 {[%clk 0:00:22.1]} 33. fxe4 {[%clk 0:00:18.5]}
33... Bc5 {[%clk 0:00:22.8]} 34. Rb3 {[%clk 0:00:09]} 34... Ra2 {[%clk
0:00:18.8]} 35. Rf3 {[%clk 0:00:05.4]} 35... Rf8 {[%clk 0:00:17.2]} 36. Rxf8+
{[%clk 0:00:04.7]} 36... Kxf8 {[%clk 0:00:18.1]} 37. Rd1 {[%clk 0:00:05.2]}
37... Ke7 {[%clk 0:00:18.3]} 38. Bg4 {[%clk 0:00:05.6]} 38... Rf2+ {[%clk
0:00:18.1]} 39. Ke1 {[%clk 0:00:06.1]} 39... Rf4 {[%clk 0:00:18.7]} 40. Rd7+
{[%clk 0:00:03.1]} 40... Ke8 {[%clk 0:00:19.2]} 41. Bh3 {[%clk 0:00:03.6]} 41...
Rxe4+ {[%clk 0:00:19.2]} 42. Kd2 {[%clk 0:00:03.2]} 42... a5 {[%clk 0:00:18.1]}
43. Rb7 {[%clk 0:00:01.9]} 43... Rxc4 {[%clk 0:00:16.6]} 44. Bd7+ {[%clk
0:00:01.9]} 44... Kd8 {[%clk 0:00:16.8]} 45. Bb5 {[%clk 0:00:00.9]} 45... Rd4+
{[%clk 0:00:17.2]} 46. Kc3 {[%clk 0:00:01.3]} 46... Rd6 {[%clk 0:00:17.8]} 0-1

[Event "*** Titled Tuesday Blitz"]
[Site "Chess.com"]
[Date "2020.03.03"]
[Round "8"]
[White "GM_dmitrij"]
[Black "moro182"]
[Result "1-0"]
[WhiteElo "2817"]
[BlackElo "2679"]
[TimeControl "180+1"]
[EndTime "10:30:07 PST"]
[Termination "GM_dmitrij won by resignation"]

1. e4 {[%clk 0:02:43.1]} 1... e5 {[%clk 0:02:59.4]} 2. Nf3 {[%clk 0:02:42.7]}
2... Nc6 {[%clk 0:03:00]} 3. Bc4 {[%clk 0:02:42.7]} 3... Bc5 {[%clk 0:02:59.4]}
4. c3 {[%clk 0:02:42.8]} 4... Nf6 {[%clk 0:02:59.6]} 5. d3 {[%clk 0:02:43.5]}
5... d6 {[%clk 0:02:59.5]} 6. Nbd2 {[%clk 0:02:44.1]} 6... O-O {[%clk
0:02:49.4]} 7. O-O {[%clk 0:02:42.4]} 7... a6 {[%clk 0:02:44.9]} 8. Bb3 {[%clk
0:02:42.3]} 8... Ba7 {[%clk 0:02:43.8]} 9. h3 {[%clk 0:02:41.4]} 9... Ne7 {[%clk
0:02:44.2]} 10. Re1 {[%clk 0:02:41.3]} 10... Ng6 {[%clk 0:02:44.8]} 11. Nf1
{[%clk 0:02:41.9]} 11... Nh5 {[%clk 0:02:42.6]} 12. Bg5 {[%clk 0:02:37.7]} 12...
Qe8 {[%clk 0:02:39.8]} 13. Nxe5 {[%clk 0:02:27.7]} 13... Qxe5 {[%clk 0:02:37.3]}
14. Qxh5 {[%clk 0:02:18.8]} 14... Nf4 {[%clk 0:02:37.4]} 15. d4 {[%clk
0:02:07.8]} 15... Nxh5 {[%clk 0:01:58.1]} 16. dxe5 {[%clk 0:02:08.7]} 16... dxe5
{[%clk 0:01:59]} 17. Rad1 {[%clk 0:02:09.1]} 17... h6 {[%clk 0:01:19.3]} 18. Be3
{[%clk 0:02:08.7]} 18... Bxe3 {[%clk 0:01:17.9]} 19. Nxe3 {[%clk 0:02:09.6]}
19... Nf4 {[%clk 0:01:17.6]} 20. h4 {[%clk 0:01:27.3]} 20... Be6 {[%clk
0:01:09.7]} 21. Nc4 {[%clk 0:01:27.6]} 21... Bxc4 {[%clk 0:01:05.3]} 22. Bxc4
{[%clk 0:01:28.5]} 22... Rfd8 {[%clk 0:01:03.4]} 23. g3 {[%clk 0:01:26.1]} 23...
Ng6 {[%clk 0:01:03.4]} 24. Kf1 {[%clk 0:01:19.2]} 24... Kf8 {[%clk 0:01:02.8]}
25. Ke2 {[%clk 0:01:19.3]} 25... Ke7 {[%clk 0:01:02.8]} 26. a4 {[%clk
0:01:15.3]} 26... Nf8 {[%clk 0:01:02.6]} 27. a5 {[%clk 0:01:13.6]} 27... Nd7
{[%clk 0:01:00.2]} 28. b4 {[%clk 0:01:12.3]} 28... Nf6 {[%clk 0:00:58.4]} 29. f3
{[%clk 0:01:07.8]} 29... Ne8 {[%clk 0:00:57.8]} 30. Ke3 {[%clk 0:01:03]} 30...
Nd6 {[%clk 0:00:56.9]} 31. Bd3 {[%clk 0:00:43.8]} 31... g6 {[%clk 0:00:56.6]}
32. f4 {[%clk 0:00:43.6]} 32... f6 {[%clk 0:00:51.5]} 33. Rf1 {[%clk 0:00:30.9]}
33... Nf7 {[%clk 0:00:51.1]} 34. Bc4 {[%clk 0:00:30.1]} 34... Rxd1 {[%clk
0:00:52]} 35. Rxd1 {[%clk 0:00:30.7]} 35... Nd6 {[%clk 0:00:52.6]} 36. Bd5
{[%clk 0:00:27.8]} 36... c6 {[%clk 0:00:42.4]} 37. Bb3 {[%clk 0:00:27.6]} 37...
Nb5 {[%clk 0:00:42.1]} 38. Rc1 {[%clk 0:00:25.4]} 38... Rd8 {[%clk 0:00:38.8]}
39. Bc4 {[%clk 0:00:24.4]} 39... Nd6 {[%clk 0:00:35.2]} 40. Bd3 {[%clk
0:00:24.5]} 40... Nf7 {[%clk 0:00:35.3]} 41. Rf1 {[%clk 0:00:20.4]} 41... g5
{[%clk 0:00:28.3]} 42. Bc4 {[%clk 0:00:17.5]} 42... Nd6 {[%clk 0:00:23.6]} 43.
Be2 {[%clk 0:00:14.9]} 43... gxf4+ {[%clk 0:00:18.7]} 44. gxf4 {[%clk
0:00:15.8]} 44... exf4+ {[%clk 0:00:19.6]} 45. Rxf4 {[%clk 0:00:14.2]} 45... Rg8
{[%clk 0:00:20.4]} 46. Rg4 {[%clk 0:00:12.2]} 46... Rxg4 {[%clk 0:00:19.3]} 47.
Bxg4 {[%clk 0:00:13.1]} 47... Nb5 {[%clk 0:00:19.6]} 48. Kd3 {[%clk 0:00:12.6]}
48... Kd6 {[%clk 0:00:19.9]} 49. c4 {[%clk 0:00:11.9]} 49... Nc7 {[%clk
0:00:18.7]} 50. c5+ {[%clk 0:00:12.4]} 50... Ke5 {[%clk 0:00:16.5]} 51. Bc8
{[%clk 0:00:13.3]} 51... f5 {[%clk 0:00:13.3]} 52. Bxf5 {[%clk 0:00:10.8]} 52...
Ne8 {[%clk 0:00:11.3]} 53. Bc8 {[%clk 0:00:10.9]} 53... Nf6 {[%clk 0:00:10.9]}
54. Bxb7 {[%clk 0:00:11.2]} 54... Nxe4 {[%clk 0:00:11.6]} 55. Bxc6 {[%clk
0:00:09.8]} 1-0

[Event "*** Titled Tuesday Blitz"]
[Site "Chess.com"]
[Date "2020.03.03"]
[Round "8"]
[White "saisree"]
[Black "GM-2023"]
[Result "0-1"]
[WhiteElo "2273"]
[BlackElo "2071"]
[TimeControl "180+1"]
[EndTime "10:30:14 PST"]
[Termination "GM-2023 won by resignation"]

1. e4 {[%clk 0:03:00.9]} 1... e5 {[%clk 0:02:07.2]} 2. Nf3 {[%clk 0:02:59.3]}
2... Nc6 {[%clk 0:02:05.5]} 3. Bc4 {[%clk 0:02:59.5]} 3... Nf6 {[%clk
0:02:04.5]} 4. d3 {[%clk 0:02:59.8]} 4... Bc5 {[%clk 0:02:03.4]} 5. c3 {[%clk
0:02:59.9]} 5... O-O {[%clk 0:02:03.2]} 6. O-O {[%clk 0:02:59.4]} 6... d5 {[%clk
0:02:03.4]} 7. exd5 {[%clk 0:02:59.3]} 7... Nxd5 {[%clk 0:02:04.3]} 8. Re1
{[%clk 0:02:59.5]} 8... f6 {[%clk 0:01:57.1]} 9. d4 {[%clk 0:02:39.9]} 9... exd4
{[%clk 0:01:49.7]} 10. cxd4 {[%clk 0:02:39.8]} 10... Bb4 {[%clk 0:01:26.4]} 11.
Nc3 {[%clk 0:02:39.6]} 11... Bxc3 {[%clk 0:01:21.4]} 12. bxc3 {[%clk 0:02:40.5]}
12... Kh8 {[%clk 0:01:21.3]} 13. Qb3 {[%clk 0:02:40]} 13... Na5 {[%clk
0:00:26.2]} 14. Qa4 {[%clk 0:02:38.7]} 14... Nxc4 {[%clk 0:00:24.9]} 15. Qxc4
{[%clk 0:02:39.6]} 15... Bg4 {[%clk 0:00:21.3]} 16. Nd2 {[%clk 0:02:36.5]} 16...
c6 {[%clk 0:00:06.6]} 17. Ba3 {[%clk 0:02:35.5]} 17... Re8 {[%clk 0:00:06.6]}
18. f3 {[%clk 0:02:34.9]} 18... Bf5 {[%clk 0:00:05.5]} 19. Ne4 {[%clk
0:02:33.9]} 19... Nf4 {[%clk 0:00:05.4]} 20. Nd6 {[%clk 0:02:29.7]} 20... Rxe1+
{[%clk 0:00:04.4]} 21. Rxe1 {[%clk 0:02:28.6]} 21... Bg6 {[%clk 0:00:04.8]} 22.
Nxb7 {[%clk 0:02:21.4]} 22... Qb6 {[%clk 0:00:03.8]} 23. Nd6 {[%clk 0:02:17.8]}
23... Qc7 {[%clk 0:00:01.6]} 24. Bc5 {[%clk 0:02:14.5]} 24... Nd5 {[%clk
0:00:01.2]} 25. Re2 {[%clk 0:01:33.1]} 25... h6 {[%clk 0:00:02.1]} 26. Rb2
{[%clk 0:01:32.1]} 26... Qd7 {[%clk 0:00:02.5]} 27. Kf2 {[%clk 0:01:23.4]} 27...
Qe6 {[%clk 0:00:02.3]} 28. Re2 {[%clk 0:01:23]} 28... Qd7 {[%clk 0:00:02.5]} 29.
Ne4 {[%clk 0:01:02.1]} 29... Nf4 {[%clk 0:00:02.4]} 30. Re1 {[%clk 0:01:01.4]}
30... Qf5 {[%clk 0:00:02.1]} 31. g3 {[%clk 0:00:54.6]} 31... Nd5 {[%clk
0:00:01.9]} 32. Re2 {[%clk 0:00:50.2]} 32... Qh3 {[%clk 0:00:01.8]} 33. Kg1
{[%clk 0:00:49.3]} 33... Kh7 {[%clk 0:00:02.7]} 34. Nf2 {[%clk 0:00:47.5]} 34...
Qd7 {[%clk 0:00:01.9]} 35. Kg2 {[%clk 0:00:44]} 35... Rb8 {[%clk 0:00:02.8]} 36.
Ne4 {[%clk 0:00:31.6]} 36... Rb1 {[%clk 0:00:03.3]} 37. Nd2 {[%clk 0:00:27.6]}
37... Rc1 {[%clk 0:00:02.8]} 38. Ne4 {[%clk 0:00:17.7]} 38... Rc2 {[%clk
0:00:02.4]} 39. Rxc2 {[%clk 0:00:17.2]} 39... Ne3+ {[%clk 0:00:02.6]} 40. Kf2
{[%clk 0:00:18.1]} 40... Nxc4 {[%clk 0:00:03.3]} 41. Ke2 {[%clk 0:00:19]} 41...
Nb6 {[%clk 0:00:03.2]} 42. Kd3 {[%clk 0:00:19.4]} 42... Nd5 {[%clk 0:00:03.2]}
43. c4 {[%clk 0:00:19.2]} 43... Nb6 {[%clk 0:00:02.9]} 44. Re2 {[%clk 0:00:19]}
44... Nc8 {[%clk 0:00:02.6]} 45. a4 {[%clk 0:00:17.5]} 45... Nb6 {[%clk
0:00:02.8]} 46. Kc3 {[%clk 0:00:14.5]} 46... Qe6 {[%clk 0:00:02.4]} 47. Kb4
{[%clk 0:00:15.4]} 47... Qxc4+ {[%clk 0:00:02.4]} 48. Ka3 {[%clk 0:00:16.3]}
48... Qxe2 {[%clk 0:00:03]} 49. Bxb6 {[%clk 0:00:15.7]} 49... axb6 {[%clk
0:00:02.2]} 50. Nc3 {[%clk 0:00:16.2]} 50... Qd3 {[%clk 0:00:02.2]} 51. Kb4
{[%clk 0:00:16.6]} 51... Qxf3 {[%clk 0:00:03.1]} 52. a5 {[%clk 0:00:15.7]} 52...
bxa5+ {[%clk 0:00:01.9]} 53. Kc4 {[%clk 0:00:16.2]} 0-1

[Event "*** Titled Tuesday Blitz"]
[Site "Chess.com"]
[Date "2020.03.03"]
[Round "8"]
[White "TBergh98"]
[Black "burbur555"]
[Result "1/2-1/2"]
[WhiteElo "2350"]
[BlackElo "2585"]
[TimeControl "180+1"]
[EndTime "10:30:15 PST"]
[Termination "Game drawn - timeout vs insufficient material"]

1. d4 {[%clk 0:03:00.9]} 1... d5 {[%clk 0:03:00.9]} 2. Nf3 {[%clk 0:03:00.6]}
2... c6 {[%clk 0:03:00.9]} 3. Bf4 {[%clk 0:03:00.9]} 3... Qb6 {[%clk 0:03:00.2]}
4. Qc1 {[%clk 0:03:00.5]} 4... Bg4 {[%clk 0:02:58.5]} 5. Nbd2 {[%clk 0:02:59.9]}
5... Nf6 {[%clk 0:02:57.2]} 6. e3 {[%clk 0:03:00.3]} 6... e6 {[%clk 0:02:57]} 7.
Bd3 {[%clk 0:03:00.3]} 7... Nbd7 {[%clk 0:02:56.3]} 8. O-O {[%clk 0:03:00.7]}
8... c5 {[%clk 0:02:55.9]} 9. c3 {[%clk 0:03:00.9]} 9... Be7 {[%clk 0:02:55.4]}
10. h3 {[%clk 0:02:56.8]} 10... Bh5 {[%clk 0:02:54.4]} 11. a3 {[%clk 0:02:56.9]}
11... O-O {[%clk 0:02:47.8]} 12. b4 {[%clk 0:02:56.9]} 12... cxd4 {[%clk
0:02:47.6]} 13. cxd4 {[%clk 0:02:56.5]} 13... Rfc8 {[%clk 0:02:46.9]} 14. Qb1
{[%clk 0:02:50.7]} 14... Bg6 {[%clk 0:02:45.5]} 15. Nb3 {[%clk 0:02:48.1]} 15...
Ne4 {[%clk 0:02:38]} 16. Nc5 {[%clk 0:02:44.8]} 16... Nexc5 {[%clk 0:02:18.1]}
17. Bxg6 {[%clk 0:02:31.4]} 17... hxg6 {[%clk 0:02:16.7]} 18. bxc5 {[%clk
0:02:29.9]} 18... Qxb1 {[%clk 0:02:15.6]} 19. Raxb1 {[%clk 0:02:28]} 19... b6
{[%clk 0:02:16]} 20. cxb6 {[%clk 0:02:20.6]} 20... axb6 {[%clk 0:02:15.2]} 21.
Rb3 {[%clk 0:02:19.4]} 21... Rxa3 {[%clk 0:02:11.1]} 22. Rfb1 {[%clk 0:02:18.3]}
22... Rxb3 {[%clk 0:02:06.2]} 23. Rxb3 {[%clk 0:02:19.2]} 23... f6 {[%clk
0:02:03]} 24. Rb1 {[%clk 0:02:06.2]} 24... Ba3 {[%clk 0:01:55.4]} 25. Nd2 {[%clk
0:02:02.8]} 25... Rc1+ {[%clk 0:01:53.2]} 26. Rxc1 {[%clk 0:02:02.6]} 26... Bxc1
{[%clk 0:01:52.9]} 27. Nb3 {[%clk 0:02:03.5]} 27... Ba3 {[%clk 0:01:51.5]} 28.
Bc7 {[%clk 0:02:03.7]} 28... Kf7 {[%clk 0:01:49.4]} 29. Kf1 {[%clk 0:02:04.2]}
29... Ke7 {[%clk 0:01:49.3]} 30. Ke2 {[%clk 0:02:01.4]} 30... Bd6 {[%clk
0:01:48.5]} 31. Bxd6+ {[%clk 0:01:59.2]} 31... Kxd6 {[%clk 0:01:48.2]} 32. Kd3
{[%clk 0:01:59.6]} 32... Kc6 {[%clk 0:01:47.6]} 33. f3 {[%clk 0:01:58.3]} 33...
Kb5 {[%clk 0:01:47.1]} 34. Nd2 {[%clk 0:01:56.7]} 34... Kb4 {[%clk 0:01:43.6]}
35. e4 {[%clk 0:01:57.2]} 35... b5 {[%clk 0:01:43.1]} 36. Nb1 {[%clk 0:01:57.6]}
36... Nb6 {[%clk 0:01:41.7]} 37. Nc3 {[%clk 0:01:56.9]} 37... Ka5 {[%clk
0:01:40.8]} 38. Ne2 {[%clk 0:01:50.1]} 38... g5 {[%clk 0:01:36.5]} 39. g3 {[%clk
0:01:49.3]} 39... b4 {[%clk 0:01:34.3]} 40. h4 {[%clk 0:01:49.6]} 40... gxh4
{[%clk 0:01:33.8]} 41. gxh4 {[%clk 0:01:49.5]} 41... Ka4 {[%clk 0:01:33.5]} 42.
Nf4 {[%clk 0:01:47]} 42... Ka3 {[%clk 0:01:31.1]} 43. Nxe6 {[%clk 0:01:35.9]}
43... b3 {[%clk 0:01:30.4]} 44. Nc7 {[%clk 0:01:33.9]} 44... b2 {[%clk
0:01:20.6]} 45. Nb5+ {[%clk 0:01:34]} 45... Kb3 {[%clk 0:01:20]} 46. Nc3 {[%clk
0:01:34.9]} 46... Na4 {[%clk 0:01:02.3]} 47. Nb1 {[%clk 0:01:34.2]} 47... Nb6
{[%clk 0:01:02.3]} 48. h5 {[%clk 0:01:31.3]} 48... Ka2 {[%clk 0:01:00.8]} 49.
Kc2 {[%clk 0:01:27.4]} 49... Ka1 {[%clk 0:00:55.1]} 50. e5 {[%clk 0:01:20.1]}
50... fxe5 {[%clk 0:00:51.3]} 51. dxe5 {[%clk 0:01:21]} 51... Nc4 {[%clk
0:00:51.5]} 52. e6 {[%clk 0:01:09.9]} 52... Ne3+ {[%clk 0:00:50.7]} 53. Kd3
{[%clk 0:01:08.8]} 53... Nf5 {[%clk 0:00:49.7]} 54. Nc3 {[%clk 0:00:29.7]} 54...
b1=Q+ {[%clk 0:00:34]} 55. Nxb1 {[%clk 0:00:29.4]} 55... Kxb1 {[%clk 0:00:34.2]}
56. Kc3 {[%clk 0:00:28.9]} 56... Kc1 {[%clk 0:00:33.5]} 57. Kb4 {[%clk
0:00:29.4]} 57... Kd2 {[%clk 0:00:25]} 58. Kc5 {[%clk 0:00:29.9]} 58... d4
{[%clk 0:00:24.7]} 59. e7 {[%clk 0:00:29.3]} 59... Nxe7 {[%clk 0:00:24.6]} 60.
Kxd4 {[%clk 0:00:29.8]} 60... Ke2 {[%clk 0:00:22.3]} 61. Ke4 {[%clk 0:00:30.3]}
61... Ng8 {[%clk 0:00:21.1]} 62. Kf4 {[%clk 0:00:28.6]} 62... Nf6 {[%clk
0:00:21]} 63. Kg5 {[%clk 0:00:26.4]} 63... Kxf3 {[%clk 0:00:20.4]} 64. Kg6
{[%clk 0:00:26.8]} 64... Nxh5 {[%clk 0:00:17.2]} 65. Kxh5 {[%clk 0:00:26.5]}
1/2-1/2

[Event "*** Titled Tuesday Blitz"]
[Site "Chess.com"]
[Date "2020.03.03"]
[Round "8"]
[White "Orest_Vovk"]
[Black "Lubov_Gordyk"]
[Result "1-0"]
[WhiteElo "2547"]
[BlackElo "2631"]
[TimeControl "180+1"]
[EndTime "10:30:26 PST"]
[Termination "Orest_Vovk won on time"]

1. g4 {[%clk 0:03:00.9]} 1... e5 {[%clk 0:02:59]} 2. Bg2 {[%clk 0:02:58.7]} 2...
Nc6 {[%clk 0:02:56.3]} 3. h3 {[%clk 0:02:58.2]} 3... h5 {[%clk 0:02:55.6]} 4.
Bxc6 {[%clk 0:02:42.5]} 4... bxc6 {[%clk 0:02:53.3]} 5. d4 {[%clk 0:02:42.1]}
5... exd4 {[%clk 0:02:46.9]} 6. Qxd4 {[%clk 0:02:42.2]} 6... hxg4 {[%clk
0:02:47]} 7. hxg4 {[%clk 0:02:42.2]} 7... Rxh1 {[%clk 0:02:44.6]} 8. Qe4+ {[%clk
0:02:41.3]} 8... Qe7 {[%clk 0:02:43.8]} 9. Qxh1 {[%clk 0:02:41.4]} 9... Qb4+
{[%clk 0:02:41.4]} 10. Nc3 {[%clk 0:02:34.2]} 10... Qxg4 {[%clk 0:02:40.8]} 11.
Bd2 {[%clk 0:02:18.6]} 11... Nf6 {[%clk 0:02:35]} 12. O-O-O {[%clk 0:02:16]}
12... Rb8 {[%clk 0:02:34.8]} 13. e4 {[%clk 0:02:11.3]} 13... Qh5 {[%clk
0:02:27.7]} 14. Qg2 {[%clk 0:02:01.6]} 14... Qg4 {[%clk 0:02:24.6]} 15. Qf1
{[%clk 0:01:53.6]} 15... d6 {[%clk 0:02:17.2]} 16. f4 {[%clk 0:01:48.2]} 16...
Be7 {[%clk 0:02:10.2]} 17. Nf3 {[%clk 0:01:32.6]} 17... Nh5 {[%clk 0:02:03.2]}
18. Qh1 {[%clk 0:01:18.5]} 18... g6 {[%clk 0:01:51]} 19. f5 {[%clk 0:00:50.5]}
19... Ng3 {[%clk 0:01:20.8]} 20. Qh8+ {[%clk 0:00:45.2]} 20... Kd7 {[%clk
0:00:57.8]} 21. Ne5+ {[%clk 0:00:34]} 21... dxe5 {[%clk 0:00:57.7]} 22. Bg5+
{[%clk 0:00:32.6]} 22... Qxd1+ {[%clk 0:00:57]} 23. Kxd1 {[%clk 0:00:32.3]}
23... Bxg5 {[%clk 0:00:56.6]} 24. fxg6 {[%clk 0:00:26.1]} 24... fxg6 {[%clk
0:00:50.6]} 25. Qxe5 {[%clk 0:00:23.7]} 25... Be7 {[%clk 0:00:31.6]} 26. Qxg3
{[%clk 0:00:21.7]} 26... g5 {[%clk 0:00:30.7]} 27. e5 {[%clk 0:00:18.2]} 27...
Kd8 {[%clk 0:00:29.2]} 28. Kc1 {[%clk 0:00:14.7]} 28... Be6 {[%clk 0:00:26.4]}
29. Ne4 {[%clk 0:00:13.5]} 29... g4 {[%clk 0:00:18.9]} 30. Nf6 {[%clk
0:00:09.8]} 30... Rb5 {[%clk 0:00:16.1]} 31. Qd3+ {[%clk 0:00:07.6]} 31... Kc8
{[%clk 0:00:15.5]} 32. Qe4 {[%clk 0:00:06.4]} 32... Kb7 {[%clk 0:00:13.3]} 33.
a4 {[%clk 0:00:06.6]} 33... Rb4 {[%clk 0:00:13]} 34. Qe3 {[%clk 0:00:06.9]}
34... Rxa4 {[%clk 0:00:12]} 35. Kb1 {[%clk 0:00:06.3]} 35... Rb4 {[%clk
0:00:10.1]} 36. b3 {[%clk 0:00:06.2]} 36... a5 {[%clk 0:00:09.5]} 37. Ne4 {[%clk
0:00:06.2]} 37... Rb5 {[%clk 0:00:09.2]} 38. Nc3 {[%clk 0:00:06]} 38... Rc5
{[%clk 0:00:08.7]} 39. Na4 {[%clk 0:00:05.7]} 39... Rb5 {[%clk 0:00:07.8]} 40.
Qf4 {[%clk 0:00:05.8]} 40... Rb4 {[%clk 0:00:07.4]} 41. Qe3 {[%clk 0:00:05.9]}
41... Rb5 {[%clk 0:00:05.2]} 42. Kb2 {[%clk 0:00:06]} 42... Kc8 {[%clk
0:00:04.5]} 43. Nc3 {[%clk 0:00:06]} 43... Rc5 {[%clk 0:00:03.9]} 44. Ne4 {[%clk
0:00:05.6]} 44... Rxe5 {[%clk 0:00:03.6]} 45. Qf4 {[%clk 0:00:05.4]} 45... Rd5
{[%clk 0:00:03.4]} 46. Nc3 {[%clk 0:00:05.2]} 46... Rd6 {[%clk 0:00:03.2]} 47.
Na4 {[%clk 0:00:05.1]} 47... Bd5 {[%clk 0:00:03]} 48. Qg3 {[%clk 0:00:03.6]}
48... Be6 {[%clk 0:00:02.9]} 49. c3 {[%clk 0:00:03.5]} 49... Bd7 {[%clk
0:00:02.9]} 50. Kc1 {[%clk 0:00:03.5]} 50... Re6 {[%clk 0:00:01.4]} 51. Qg1
{[%clk 0:00:04]} 1-0

[Event "*** Titled Tuesday Blitz"]
[Site "Chess.com"]
[Date "2020.03.03"]
[Round "8"]
[White "praveenb2002"]
[Black "vaishali2001"]
[Result "1-0"]
[WhiteElo "2619"]
[BlackElo "2457"]
[TimeControl "180+1"]
[EndTime "10:30:27 PST"]
[Termination "praveenb2002 won on time"]

1. d4 {[%clk 0:03:00.9]} 1... Nf6 {[%clk 0:02:59.8]} 2. c4 {[%clk 0:03:00]} 2...
e6 {[%clk 0:02:59.7]} 3. g3 {[%clk 0:02:59.9]} 3... d5 {[%clk 0:02:59]} 4. Nf3
{[%clk 0:03:00.1]} 4... dxc4 {[%clk 0:02:59.3]} 5. Bg2 {[%clk 0:02:59.9]} 5...
a6 {[%clk 0:02:59.2]} 6. O-O {[%clk 0:02:59.5]} 6... Nc6 {[%clk 0:02:59.1]} 7.
e3 {[%clk 0:02:58.3]} 7... Rb8 {[%clk 0:02:59.5]} 8. Nfd2 {[%clk 0:02:56.9]}
8... e5 {[%clk 0:02:57.2]} 9. Bxc6+ {[%clk 0:02:54.9]} 9... bxc6 {[%clk
0:02:58.1]} 10. dxe5 {[%clk 0:02:55.3]} 10... Ng4 {[%clk 0:02:58.7]} 11. Nxc4
{[%clk 0:02:53.8]} 11... Be6 {[%clk 0:02:56.1]} 12. Qxd8+ {[%clk 0:02:49.9]}
12... Rxd8 {[%clk 0:02:55.5]} 13. Nbd2 {[%clk 0:02:49.8]} 13... Bb4 {[%clk
0:02:51]} 14. h3 {[%clk 0:02:42.7]} 14... Bxd2 {[%clk 0:02:44.6]} 15. Nxd2
{[%clk 0:02:42.9]} 15... Nxe5 {[%clk 0:02:45]} 16. Kg2 {[%clk 0:02:40.7]} 16...
Nd3 {[%clk 0:02:34.1]} 17. Nb3 {[%clk 0:02:39.9]} 17... Bd5+ {[%clk 0:02:29.2]}
18. f3 {[%clk 0:02:37]} 18... c5 {[%clk 0:02:00.5]} 19. Bd2 {[%clk 0:02:30.3]}
19... c4 {[%clk 0:01:46.5]} 20. Na5 {[%clk 0:02:29]} 20... Rb8 {[%clk
0:01:43.4]} 21. Bc3 {[%clk 0:02:28]} 21... f6 {[%clk 0:01:42.1]} 22. Rab1 {[%clk
0:02:20.1]} 22... Kf7 {[%clk 0:01:40.9]} 23. b3 {[%clk 0:02:15.4]} 23... cxb3
{[%clk 0:01:37.4]} 24. axb3 {[%clk 0:02:14.8]} 24... Rb5 {[%clk 0:01:34.4]} 25.
Rfd1 {[%clk 0:02:06.1]} 25... Ne5 {[%clk 0:01:25.7]} 26. e4 {[%clk 0:02:03.3]}
26... Ba8 {[%clk 0:01:21.6]} 27. Bxe5 {[%clk 0:01:59.7]} 27... Rxa5 {[%clk
0:01:06.7]} 28. Bc3 {[%clk 0:01:38.1]} 28... Ra2+ {[%clk 0:01:06.1]} 29. Rb2
{[%clk 0:01:36.8]} 29... Rxb2+ {[%clk 0:01:06.3]} 30. Bxb2 {[%clk 0:01:37.7]}
30... Rb8 {[%clk 0:01:06.6]} 31. Rd7+ {[%clk 0:01:37]} 31... Kg6 {[%clk
0:01:03.3]} 32. Rxc7 {[%clk 0:01:35]} 32... Rxb3 {[%clk 0:01:03]} 33. Bc3 {[%clk
0:01:35.6]} 33... h5 {[%clk 0:00:57.9]} 34. h4 {[%clk 0:01:33.5]} 34... Ra3
{[%clk 0:00:54.2]} 35. Kf2 {[%clk 0:01:30.6]} 35... a5 {[%clk 0:00:52.8]} 36.
Bd2 {[%clk 0:01:22.3]} 36... a4 {[%clk 0:00:50]} 37. Bb4 {[%clk 0:01:22.2]}
37... Rb3 {[%clk 0:00:48.5]} 38. Bf8 {[%clk 0:01:20.8]} 38... Rb7 {[%clk
0:00:44.7]} 39. Rc8 {[%clk 0:01:03.9]} 39... Ra7 {[%clk 0:00:39.5]} 40. Bc5
{[%clk 0:01:02]} 40... Ra5 {[%clk 0:00:34.6]} 41. Rc7 {[%clk 0:00:53.6]} 41...
Rb5 {[%clk 0:00:24.9]} 42. Bf8 {[%clk 0:00:48.5]} 42... Rb7 {[%clk 0:00:24.7]}
43. Rc8 {[%clk 0:00:48.5]} 43... Ra7 {[%clk 0:00:25]} 44. Bc5 {[%clk 0:00:49.1]}
44... Ra6 {[%clk 0:00:21.3]} 45. Ba3 {[%clk 0:00:41.5]} 45... Ra7 {[%clk
0:00:15.2]} 46. Ke3 {[%clk 0:00:40.3]} 46... Rb7 {[%clk 0:00:13.4]} 47. Kf4
{[%clk 0:00:34.1]} 47... Rb3 {[%clk 0:00:10.9]} 48. Bf8 {[%clk 0:00:34.1]} 48...
Bb7 {[%clk 0:00:05]} 49. Rc7 {[%clk 0:00:34.3]} 49... Kh7 {[%clk 0:00:05.3]} 50.
Bxg7 {[%clk 0:00:31.7]} 50... a3 {[%clk 0:00:03.1]} 51. Bxf6+ {[%clk 0:00:31.3]}
51... Kg8 {[%clk 0:00:03.3]} 52. Kg5 {[%clk 0:00:25.1]} 52... a2 {[%clk
0:00:02.4]} 53. Kg6 {[%clk 0:00:17.3]} 53... Rb6 {[%clk 0:00:02.3]} 54. Rc1
{[%clk 0:00:13.8]} 54... Rb1 {[%clk 0:00:01.9]} 55. Rc7 {[%clk 0:00:11.5]} 55...
Rb6 {[%clk 0:00:02.3]} 56. Rc1 {[%clk 0:00:10.2]} 56... Rb1 {[%clk 0:00:02.5]}
57. Rc2 {[%clk 0:00:10.7]} 1-0